Cogmind - Beta 10.2 @@@ ROGUE MODE // 2020.12.30 @ 21:28:45 Player: Wyvric Result: Establishing 0b11! Performance ------------- Evolutions (9) 4500 Regions Visited (27) 5400 Robots Destroyed (296) 1480 Value Destroyed (18639) 18639 Prototype IDs (61) 1220 Alien Tech Used (7) 1400 Bonus (36572) 36572 TOTAL SCORE: 69211 Bonus ------- High Alert Combat Kills 1986 Follower Combat Kills 1847 Met Warlord at Base 500 MAIN.C Attacked Warlord 500 Warlord Defense Kill 3514 Hacked Protovariant 500 Scanned by Researcher 500 Acquired SGEMP 2000 Met Sigix 2000 Destroyed MAIN.C Guards 500 Met MAIN.C 5000 Destroyed MAIN.C Shell 5000 Destroyed MAIN.C 10000 Win 3000 Friendly Fire -275 Cogmind --------- Core Integrity 1089/1600 Matter 797/800 Energy 1096/1600 System Corruption 1% Temperature Cool (24) Movement Treading (202) Ox1 Location 0b11 Command Parts ------- > --- POWER (2) -------- Reinforced Quantum Reactor Reinforced Quantum Reactor > --- PROPULSION (6) --- Armored Heavy Treads Improved Heavy Siege Treads Improved Heavy Siege Treads > --- UTILITY (14) ----- High-capacity Storage Unit High-capacity Storage Unit High-capacity Storage Unit Experimental Energy Well Experimental Matter Compressor Experimental Targeting Computer Experimental Targeting Computer Experimental Target Analyzer Experimental Core Analyzer Experimental Armor Integrity Analyzer Light Regenerative Plating Heavy Regenerative Plating > --- WEAPON (4) ------- Helical Railgun Helical Railgun Multirail Multirail > --- INVENTORY (28) --- Biometal Heavy Treads Experimental Matter Compressor (500) Quantum Capacitor SHELL Armor Beam Splitter EM Dispersion Field Makeshift System Restoration Module Transdimensional Reconstructor High-powered Transdimensional Reconstructor Vortex Driver Helical Railgun Heavy Autocannon Heavy Autocannon Core Stripper Core Stripper Peak State ------------ > --- POWER ------------ Reinforced Quantum Reactor Reinforced Quantum Reactor > --- PROPULSION ------- Armored Heavy Treads Biometal Heavy Treads Advanced Heavy Siege Treads > --- UTILITY ---------- High-capacity Storage Unit High-capacity Storage Unit High-capacity Storage Unit High-capacity Storage Unit High-capacity Storage Unit Advanced Target Analyzer Experimental Armor Integrity Analyzer Advanced Kinecellerator Advanced Weapon Cycler Advanced Phase Shifter SHELL Armor Experimental Hacking Suite > --- WEAPON ----------- Multirail Multirail Multirail Multirail > --- INVENTORY -------- Quantum Reactor Armored Heavy Treads Armored Heavy Treads Advanced Cooling System Advanced Coolant Injector Experimental Energy Well Experimental Matter Compressor Quantum Capacitor Light Regenerative Plating Medium Regenerative Plating Heavy Regenerative Plating EM Dispersion Field Makeshift System Restoration Module Long-range Tractor Beam Minesniffer Drone Bay Dimensional Node Initializer Dimensional Node Initializer Dimensional Node Initializer Transdimensional Reconstructor Transdimensional Reconstructor High-powered Transdimensional Reconstructor High-powered Transdimensional Reconstructor Subatomic Replicator Vortex Driver Enhanced Nova Cannon Enhanced Nova Cannon Multirail Heavy Autocannon Heavy Autocannon Fusion Bomb Launcher Core Stripper Enhanced Force Lance SGEMP Prototype Sigix Containment Pod [Rating: 249] Favorites ----------- Power Enhanced Fission Core Engine Improved Deuterium Engine Power Core Enhanced Fission Core Reactor Reinforced Quantum Reactor Propulsion Armored Medium Treads Treads Armored Medium Treads Leg Centrium Leg Wheel Centrium Wheel Utility High-capacity Storage Unit Device Advanced Terrain Scanner Storage High-capacity Storage Unit Processor Experimental Signal Interpreter Hackware Makeshift Hacking Suite Protection Heavy Regenerative Plating Weapon Heavy Battle Rifle Energy Gun Cooled Plasma Rifle Energy Cannon Enhanced Nova Cannon Ballistic Gun Heavy Battle Rifle Ballistic Cannon Bore Cannon Launcher Long-range Missile Launcher Impact Weapon Heavy Flail Slashing Weapon Chainsword Piercing Weapon Plasma Lance Build | -11 -10 -10 -10 -9 -8 -7 -7 -7 -6 -5 -5 -5 -5 -4 -4 -4 -4 -4 -4 -4 -3 -3 -3 -2 -2 -1 -1 ------- Run | Scr Mat Min Exi Min Mat Fac Low Low Fac Fac Upp Upp Zhi Pro Fac Was Fac Upp Upp War Pro Res Tes Res Qua Acc Com Slots Evolved 18 | . . . . . 4 2 . . 2 2 . . . . 2 . . . . . . 2 . 2 . 2 . Power 1 | . . . . . . . . . . . . . . . . . . . . . . 1 . . . . . Propulsion 3 | . . . . . . . . . 2 . . . . . . . . . . . . . . . . 1 . Utility 12 | . . . . . 2 2 . . . 2 . . . . 2 . . . . . . 1 . 2 . 1 . Weapon 2 | . . . . . 2 . . . . . . . . . . . . . . . . . . . . . . Parts Attached 719 | 7 9 2 . 1 15 11 14 4 35 17 19 18 13 12 16 25 4 1 4 40 41 18 82 36 97 61 117 Power 37 | 1 . 1 . . 2 1 2 . 2 1 . 1 1 . 1 . . . . . 1 1 6 3 5 2 6 Engine 7 | 1 . . . . . 1 2 . 1 . . . . . . . . . . . . 1 . . 1 . . Core 9 | . . 1 . . 2 . . . 1 1 . . 1 . 1 . . . . . 1 . . 1 . . . Reactor 21 | . . . . . . . . . . . . 1 . . . . . . . . . . 6 2 4 2 6 Propulsion 64 | 2 4 . . . 3 3 2 3 3 . 4 1 2 1 3 1 . . . 1 5 1 6 3 4 4 8 Treads 49 | 2 2 . . . 1 1 2 3 1 . 4 1 2 1 3 1 . . . 1 4 1 6 . 1 4 8 Leg 8 | . 2 . . . . . . . . . . . . . . . . . . . . . . 3 3 . . Wheel 7 | . . . . . 2 2 . . 2 . . . . . . . . . . . 1 . . . . . . Hover . | . . . . . . . . . . . . . . . . . . . . . . . . . . . . Flight . | . . . . . . . . . . . . . . . . . . . . . . . . . . . . Utility 403 | 1 1 1 . . 5 5 . . 15 11 10 13 6 8 7 16 . . 2 22 21 9 39 24 77 31 79 Device 271 | . . . . . . 1 . . 8 5 6 9 2 7 5 12 . . 2 19 17 7 31 14 48 22 56 Storage 33 | 1 1 1 . . 5 2 . . . . 1 . 1 . 1 4 . . . 1 2 1 . . 6 2 4 Processor 17 | . . . . . . 1 . . 4 . . . 1 . . . . . . . 1 . . . 3 1 6 Hackware 9 | . . . . . . . . . . 2 . . . . 1 . . . . . . 1 4 . 1 . . Protection 73 | . . . . . . 1 . . 3 4 3 4 2 1 . . . . . 2 1 . 4 10 19 6 13 Artifact . | . . . . . . . . . . . . . . . . . . . . . . . . . . . . Weapon 215 | 3 4 . . 1 5 2 10 1 15 5 5 3 4 3 5 8 4 1 2 17 14 7 31 6 11 24 24 Energy Gun 18 | 2 . . . . 1 . 1 . . . . . 1 . . . . . . . 1 5 6 . 1 . . Energy Cannon 11 | . . . . . . . . . . . . . . . . . . . . 2 . . 1 1 3 4 . Ballistic Gun 84 | 1 4 . . 1 4 1 7 1 4 2 1 2 2 . 3 4 1 1 1 3 . . 8 . . 13 20 Ballistic Cannon 50 | . . . . . . 1 . . 4 1 1 . . 3 1 4 3 . . 10 8 1 4 4 4 1 . Launcher 19 | . . . . . . . 2 . 2 . 2 1 . . . . . . 1 1 5 1 4 . . . . Special Weapon . | . . . . . . . . . . . . . . . . . . . . . . . . . . . . Impact Weapon 12 | . . . . . . . . . 3 . 1 . 1 . 1 . . . . . . . 2 . . 3 1 Slashing Weapon 6 | . . . . . . . . . 2 2 . . . . . . . . . 1 . . 1 . . . . Piercing Weapon 15 | . . . . . . . . . . . . . . . . . . . . . . . 5 1 3 3 3 Special Melee Weapon . | . . . . . . . . . . . . . . . . . . . . . . . . . . . . Unidentified Prototypes 43 | . . . . . 1 1 1 . 2 1 . . 2 . . . . . . 4 1 1 8 3 3 6 9 Parts Lost 60 | . . . . 1 1 3 9 . 1 1 . 1 . 1 . . . . . 4 5 1 9 1 9 1 12 Power 6 | . . . . . . 1 2 . . . . . . . . . . . . . . . 1 1 1 . . Propulsion 9 | . . . . . . . 1 . . . . 1 . 1 . . . . . . . . 2 . 3 . 1 Utility 13 | . . . . . . . . . . . . . . . . . . . . 1 1 1 1 . 3 1 5 Weapon 32 | . . . . 1 1 2 6 . 1 1 . . . . . . . . . 3 4 . 5 . 2 . 6 Highest Loss Streak 4 | . . . . 1 1 3 4 . 1 1 . 1 . 1 . . . . . 2 2 1 3 1 3 1 3 Average Slot Usage (%) 89 | . 86 100 100 100 96 96 96 99 88 88 95 93 93 88 91 90 89 89 89 87 88 95 89 87 87 79 78 Core 3 | . . 4 14 14 9 2 . . 2 5 5 4 3 5 4 5 5 5 5 5 5 4 . 2 1 . . Reactor 1 | . . . . . . . . . . . . . 1 . . . . . . . . . 8 4 5 7 7 Treads 14 | . 26 28 28 28 13 . 13 15 5 . 20 22 23 17 21 16 15 15 15 15 15 19 13 8 2 10 10 Leg 1 | . . . . . . . . . . . . . . . . . . . . . . . . 10 15 3 . Wheel 1 | . . . . . 4 15 1 . 9 11 1 . . . . . . . . . 4 . . . . . . Device 4 | . . . . . . . . . 4 4 4 4 3 4 8 5 5 5 5 4 6 9 3 7 8 7 7 Storage 18 | . 17 28 28 28 34 37 38 38 24 17 14 11 11 11 12 14 15 15 15 15 15 21 22 16 18 19 14 Processor 9 | . . . . . . 2 7 7 8 11 11 11 11 11 10 10 10 10 10 10 14 14 10 4 7 7 14 Hackware 6 | . . . . . . . . . . 10 11 11 11 11 10 15 15 15 15 13 . 3 8 8 4 3 . Protection 2 | . . . . . . 2 . . 1 1 . . . . . . . . . . 4 . 1 7 5 4 5 Ballistic Gun 12 | . 24 28 28 28 31 24 26 29 17 8 11 16 14 9 11 6 18 21 21 14 . . 6 . . 3 14 Ballistic Cannon 6 | . . . . . . 4 1 . 4 10 5 5 5 12 7 14 2 . . 5 15 6 . 13 8 1 . Naked Turns . | . . . . . . . . . . . . . . . . . . . . . . . . . . . . Heaviest Build 317 | 11 25 31 31 31 73 109 114 111 112 114 161 159 154 165 185 230 180 175 179 256 202 235 242 249 287 317 309 Greatest Support 230 | 40 40 40 40 40 40 24 40 40 56 56 102 109 109 122 103 127 127 127 127 127 124 108 159 85 141 215 230 Greatest Overweight (x) 12 | . 2 . . . 3 4 9 2 5 2 1 1 1 3 1 1 1 1 1 4 12 2 4 4 4 3 1 Average Overweight (x) 1 | . . . . . 1 3 2 2 1 1 . 1 1 1 1 1 1 1 1 1 7 1 1 3 1 1 . Largest Inventory Capacity 56 | 6 12 14 14 14 26 34 34 34 34 24 38 32 32 32 40 48 40 40 40 48 56 44 44 44 44 44 44 Average Capacity 34 | 5 7 12 14 14 23 30 34 34 27 24 28 32 32 32 36 39 40 40 40 41 40 41 44 36 40 44 34 Most Carried 48 | 6 6 14 14 14 26 33 34 34 34 24 35 32 32 32 40 45 40 40 40 48 48 44 44 41 44 44 44 Average Carried 34 | 4 5 7 13 13 22 29 33 33 27 23 26 31 31 31 34 35 39 40 40 40 39 39 43 34 38 43 33 Final Capacity 48 | 6 12 14 14 14 26 34 34 34 24 24 32 32 32 32 40 40 40 40 40 48 36 44 44 36 44 44 28 Final Carried 45 | 6 4 14 14 14 26 33 34 34 24 24 31 32 32 32 39 40 40 40 40 45 35 44 42 34 44 42 23 Class Distribution -------------------- 25% | Hauler-Skirmisher 25% | Hauler-Gunner 23% | Hauler-Mutant 7% | Mutant 6% | Scavenger-Gunner 4% | Hacker-Mutant 3% | Scavenger-Mutant Dominant Class ---------------- Mutant | -10/Materials Mutant | -10/Mines Mutant | -10/Exiles Mutant | -9/Mines Hauler-Gunner | -8/Materials Hauler-Gunner | -7/Factory Hauler-Gunner | -7/Lower Caves Hauler-Gunner | -7/Lower Caves Hauler-Tank | -6/Factory Hauler-Mutant | -5/Factory Hauler-Mutant | -5/Upper Caves Hauler-Skirmisher | -5/Upper Caves Hauler-Mutant | -5/Zhirov Hauler-Skirmisher | -4/Proximity Caves Hauler-Skirmisher | -4/Factory Hauler-Skirmisher | -4/Waste Hauler-Mutant | -4/Factory Hauler-Skirmisher | -4/Upper Caves Hauler-Skirmisher | -4/Upper Caves Hauler-Skirmisher | -4/Warlord Hauler-Gunner | -3/Proximity Caves Hauler-Gunner | -3/Research Hauler-Mutant | -3/Testing Hacker-Mutant | -2/Research Hauler-Mutant | -2/Quarantine Hauler-Mutant | -1/Access Scavenger-Gunner | -1/Command Resources | -11 -10 -10 -10 -9 -8 -7 -7 -7 -6 -5 -5 -5 -5 -4 -4 -4 -4 -4 -4 -4 -3 -3 -3 -2 -2 -1 -1 ----------- Run | Scr Mat Min Exi Min Mat Fac Low Low Fac Fac Upp Upp Zhi Pro Fac Was Fac Upp Upp War Pro Res Tes Res Qua Acc Com Matter Collected 21108 | 179 43 428 20 10 280 351 694 235 803 251 578 422 120 721 119 968 58 34 76 1704 799 221 2218 548 2654 860 5714 Remotely 4346 | . . . . . . . . . 332 105 . 117 . 280 . 590 . . . 1096 253 . 805 156 479 . 133 Salvage Created 18870 | . 94 66 61 . 313 151 577 75 592 183 344 508 130 93 119 1480 . . 83 1141 586 250 2203 231 2124 934 6532 Parts 719 | . 3 4 1 . 22 9 17 2 27 5 11 22 . 10 5 7 . . 4 25 20 20 104 8 89 39 265 Haulers Intercepted 1 | . . . . . . . . . 1 . . . . . . . . . . . . . . . . . . Recyclers Shooed 3 | . . . . . . . . . . . 1 . . . . . . . . . . . . . . . 2 Parts Field Recycled 27 | . . . . . . . . . . 11 14 2 . . . . . . . . . . . . . . . Retrieved Matter 160 | . . . . . . . . . . 56 88 16 . . . . . . . . . . . . . . . Parts Self-Destructed 202 | . . . . . . . 8 2 . . 1 15 . 10 . . . 21 18 116 11 . . . . . . Prevented 24 | . . . . . . . 2 . . . 9 5 . . . . . . . 5 3 . . . . . . Kills | -11 -10 -10 -10 -9 -8 -7 -7 -7 -6 -5 -5 -5 -5 -4 -4 -4 -4 -4 -4 -4 -3 -3 -3 -2 -2 -1 -1 ------- Run | Scr Mat Min Exi Min Mat Fac Low Low Fac Fac Upp Upp Zhi Pro Fac Was Fac Upp Upp War Pro Res Tes Res Qua Acc Com Combat Hostiles Destroyed 253 | . 2 3 . . 8 5 15 1 10 3 5 9 . 3 3 6 . . 2 23 20 3 29 3 38 7 55 Melee 4 | . . . . . . . . . 1 . . . . . . . . . . . . . . . 3 . . Guns 122 | . 2 3 . . 8 4 10 1 2 2 1 4 . 1 3 . . . 2 . . 1 23 . . 1 54 Cannons 75 | . . . . . . 1 2 . 5 1 . . . 2 . 6 . . . 17 5 2 . 3 28 3 . AOE 36 | . . . . . . . 3 . 1 . 3 5 . . . . . . . 6 15 . 2 . 1 . . Classes Destroyed 26 | . 1 1 . . 4 . 1 . 4 . . . . 1 . 1 . . . 3 2 1 2 2 2 . 1 Worker 18 | . . . . . 3 . . . 1 1 . . . . . . . . . . . . 1 . 2 . 10 Builder 5 | . . . . . . . . . . . . . . . . . . . . . . 2 2 . 1 . . Tunneler 1 | . . . . . 1 . . . . . . . . . . . . . . . . . . . . . . Hauler 1 | . . . . . . . . . 1 . . . . . . . . . . . . . . . . . . Recycler 9 | . . . . . . . . . . . . . . . . . . . . . . . . 1 . 1 7 Operator 1 | . . . . . . . . . . . . . . . . . . . . . . . . 1 . . . Watcher 3 | . . . . . . . . . 1 . . . . . . . . . . . . . . . 1 . 1 Swarmer 43 | . . 2 . . 3 4 7 . 3 . 1 1 . . 2 . . . . 2 11 . 3 . . . 4 Grunt 55 | . 2 1 . . 3 . 2 . 3 2 1 6 . . . . . . 1 6 6 . 15 . 4 . 3 Brawler 10 | . . . . . . . 1 . . 1 2 . . . . . . . . 3 . . . . 2 . 1 Duelist 3 | . . . . . . . . . 1 . . . . . . . . . . . . . . . 2 . . Protector 4 | . . . . . . . . . . . . . . . . . . . . 1 . . . . 1 . 2 Researcher 2 | . . . . . . . . . . . . . . . . . . . . . . . 2 . . . . Sentry 14 | . . . . . 1 1 . 1 1 . 1 1 . . 1 . . . . . 2 2 . 1 . . 2 Demolisher 1 | . . . . . . . . . . . . . . . . . . . . . . . . . . . 1 Specialist 2 | . . . . . . . . . . . . . . . . . . . . . . . . . 1 . 1 Hunter 28 | . . . . . 1 . 1 . 1 . . . . . . . . . 1 3 . . 2 . 10 2 7 Programmer 46 | . . . . . . . . . 1 . . 1 . 2 . . . . . 3 . 1 6 2 13 1 16 Q-Series 4 | . . . . . . . . . . . . . . . . . . . . . . . . . 2 2 . Behemoth 8 | . . . . . . . . . . . . . . 1 . . . . . . 1 . . . . 2 4 Compactor 6 | . . . . . . . . . . . . . . . . 6 . . . . . . . . . . . M Guard 2 | . . . . . . . . . . . . . . . . . . . . . . . . . . . 2 Lightning 3 | . . . . . . . . . . . . . . . . . . . . . . . . . 3 . . Combat Programmer 2 | . . . . . . . . . . . . . . . . . . . . . . . . . . . 2 Investigator 1 | . . . . . . . . . . . . . . . . . . . . . . . 1 . . . . Striker 8 | . . . . . . . . . . . . . . . . . . . . 4 . . 2 . . . 2 Executioner 5 | . . . . . . . . . . . . . . . . . . . . 1 . . . . . . 4 Alpha 7 3 | . . . . . . . . . . . . . . . . . . . . . . . 1 . . . 2 Samaritan 2 | . . . . . . . . . . . . . . . . . . . . . 2 . . . . . . Surgeon 1 | . . . . . . . . . . . . . . . . . . . . . 1 . . . . . . Thug 1 | . . . . . . . 1 . . . . . . . . . . . . . . . . . . . . Savage 3 | . . . . . . . 3 . . . . . . . . . . . . . . . . . . . . Butcher 1 | . . . . . . . . . . . . . . . . . . . . 1 . . . . . . . Best Kill Streak 9 | . 2 2 . . 5 4 5 1 4 2 4 5 . 2 2 2 . . 1 6 7 2 9 1 8 3 8 Combat Bots Only 8 | . 2 2 . . 3 4 5 1 3 2 4 5 . 2 2 2 . . 1 6 7 2 7 1 8 2 6 Max Kills in Single Turn 3 | . 1 1 . . 2 1 1 1 2 1 2 3 . 1 2 1 . . 1 3 3 2 2 1 1 1 2 Gunslinging 1 | . . . . . . . . . . . . . . . 1 . . . . . . . . . . . 1 Exploded 3 | . . . . . . . 1 . 1 . 2 3 . . . . . . . 3 3 . 2 . 1 . . Melee 1 | . . . . . . . . . 1 . . . . . . . . . . . . . . . 1 . . Uniques/NPCs Destroyed 2 | . . . . . . . . . . . . . . . . . . . . . . . . . . . 2 MAIN.C Shell (-1/Command) MAIN.C (-1/Command) Combat | -11 -10 -10 -10 -9 -8 -7 -7 -7 -6 -5 -5 -5 -5 -4 -4 -4 -4 -4 -4 -4 -3 -3 -3 -2 -2 -1 -1 -------- Run | Scr Mat Min Exi Min Mat Fac Low Low Fac Fac Upp Upp Zhi Pro Fac Was Fac Upp Upp War Pro Res Tes Res Qua Acc Com Damage Taken 36578 | . 114 96 . 81 507 417 1640 68 1018 385 126 533 . 1319 116 . . . 73 2522 2338 335 5753 802 4352 2983 11000 Core 2035 | . 18 17 . 6 40 43 217 . 156 37 16 71 . 68 12 . . . . 153 107 30 285 227 148 62 322 Absorbed by Shields . | . . . . . . . . . . . . . . . . . . . . . . . . . . . . Reduced by Siege Mode 1444 | . . . . . . . . . . . . . . 73 . . . . . 52 23 . 278 . 20 70 928 Core Remaining (%) 78 | 100 . . . 83 92 . . 62 81 . . . . 80 . . . . . . 76 . 75 . 67 . 68 Volleys Fired 762 | . 7 10 10 1 23 13 34 3 29 18 17 15 39 14 4 25 6 . 3 32 53 11 67 20 148 25 135 Largest 4 | . 2 2 2 2 4 4 4 4 4 4 3 4 1 4 3 4 1 . 4 4 4 4 4 4 4 4 4 Hottest 288 | . 40 40 40 40 129 122 146 97 143 173 111 139 65 219 91 244 57 . 132 244 236 212 288 261 261 156 180 Shots Fired 2000 | . 14 20 20 2 92 51 112 13 87 59 19 48 39 56 12 100 6 . 12 119 93 28 207 56 187 31 517 Gun 1217 | . 14 20 20 2 92 42 88 13 54 29 2 33 39 9 12 . . . 12 . 13 12 185 . 1 8 517 Cannon 717 | . . . . . . 9 18 . 26 30 1 11 . 47 . 100 6 . . 116 60 13 15 56 186 23 . Launcher 66 | . . . . . . . 6 . 7 . 16 4 . . . . . . . 3 20 3 7 . . . . Special . | . . . . . . . . . . . . . . . . . . . . . . . . . . . . Kinetic 1625 | . 14 20 20 2 80 51 102 13 80 59 3 44 . 56 12 100 6 . 12 116 60 13 119 52 66 8 517 Thermal 200 | . . . . . 12 . . . . . . . . . . . . . . . 13 12 78 4 80 1 . Explosive 20 | . . . . . . . . . . . . . . . . . . . . 3 15 . 2 . . . . Electromagnetic 143 | . . . . . . . 10 . 7 . 16 4 39 . . . . . . . 5 3 4 . 33 22 . Entropic 11 | . . . . . . . . . . . . . . . . . . . . . . . 3 . 8 . . Robot Hit Streak 59 | . 10 13 3 4 13 6 7 15 8 3 4 13 24 42 7 10 . . 6 21 12 6 37 8 14 13 59 Robot Miss Streak 16 | . 1 1 1 1 4 16 12 1 3 3 2 1 1 1 3 2 . . 2 2 4 1 3 3 3 2 9 Penetration Max 2 | . . . . . 1 . . . . 1 . . . . . 1 . . . 1 . . 1 . 1 . 2 Secondary Targets 30 | . 1 1 . . 3 . 2 . . . . . . . 1 . . . . . . . 4 . . . 18 Max Gunslinging Chain 1 | . 1 1 . . 1 . 1 . . . . . . . 1 . . . . . . . 1 . . . 1 Capacitor 139 | . . . . . . . . . . . . . . . . . . . . . . . . 2 117 20 . Shots Hit Robots 1429 | . 12 17 13 1 64 26 72 10 44 26 8 32 37 50 7 61 . . 7 71 56 18 152 24 156 27 438 Core Hits 921 | . 6 7 5 1 24 12 41 3 21 10 8 21 39 9 5 12 . . 4 54 57 8 96 9 66 12 391 Critical Hits 286 | . . . . . . . 2 . 1 1 . 2 . 9 . 34 . . . 45 17 2 20 . 39 4 110 Critical Kills 78 | . . . . . . . . . . . . . . 1 . 6 . . . 17 3 1 8 . 16 1 25 Critical Parts Destroyed 123 | . . . . . . . 1 . 1 1 . 2 . 1 . 4 . . . 25 3 1 9 . 17 3 55 Melee Attacks 112 | . . . . . . . . . 10 4 2 . 2 . 1 . . . . . . . 13 16 47 10 7 Kinetic 5 | . . . . . . . . . . . . . . . . . . . . . . . . . . 3 2 Impact 10 | . . . . . . . . . 3 . 2 . 2 . 1 . . . . . . . 2 . . . . Slashing 11 | . . . . . . . . . 7 4 . . . . . . . . . . . . . . . . . Piercing 86 | . . . . . . . . . . . . . . . . . . . . . . . 11 16 47 7 5 Sneak Attacks 1 | . . . . . . . . . . . . . . . . . . . . . . . . . 1 . . Combat Hostiles . | . . . . . . . . . . . . . . . . . . . . . . . . . . . . Follow-up Attacks . | . . . . . . . . . . . . . . . . . . . . . . . . . . . . Damage Inflicted 49972 | . 102 131 116 6 1021 332 1301 162 1273 626 410 1135 105 1554 175 1410 . . 133 3005 3694 580 4252 1188 9621 1008 16632 Guns 25241 | . 102 130 116 6 1021 318 859 162 304 352 24 532 105 140 175 . . . 133 . 207 141 3660 . . 194 16560 Cannons 17202 | . . . . . . 14 238 . 384 274 . 125 . 1414 . 1410 . . . 1532 958 346 98 1188 8459 762 . Explosions 6136 | . . . . . . . 204 . 479 . 386 478 . . . . . . . 1473 2529 93 494 . . . . Melee 1359 | . . . . . . . . . 106 . . . . . . . . . . . . . . . 1162 52 39 Ramming 34 | . . 1 . . . . . . . . . . . . . . . . . . . . . . . . 33 Kinetic 32676 | . 102 130 116 6 853 332 1054 162 688 626 24 657 . 1554 175 1410 . . 133 1532 958 346 1655 1020 2298 246 16599 Thermal 7172 | . . . . . 168 . . . . . . 198 . . . . . . . . 207 141 2005 168 4285 . . Explosive 4116 | . . . . . . . . . . . . . . . . . . . . 1473 2312 . 331 . . . . Electromagnetic 3945 | . . . . . . . 247 . 479 . 386 280 105 . . . . . . . 217 93 163 . 1213 762 . Impact . | . . . . . . . . . . . . . . . . . . . . . . . . . . . . Slashing 106 | . . . . . . . . . 106 . . . . . . . . . . . . . . . . . . Piercing 1162 | . . . . . . . . . . . . . . . . . . . . . . . . . 1162 . . Entropic 761 | . . . . . . . . . . . . . . . . . . . . . . . 98 . 663 . . Highest Corruption 9 | . . . . . . . 7 7 . . . . . 1 . . . . . 4 4 . 8 9 7 . 2 Average Corruption 4 | . . . . . . . 6 7 . . . . . 1 . . . . . 3 2 . 4 4 4 . 1 Corruption Purged 23 | . . . . . . . . . . . . . . 1 . . . . . . 4 . . 9 5 . 4 Effects 148 | . . . . . . . 45 10 . . . . . 4 . . . . . 1 4 . 31 22 23 . 8 Message Errors 31 | . . . . . . . 11 1 . . . . . 1 . . . . . . 4 . 6 3 4 . 1 Matter Fused 27 | . . . . . . . 11 1 . . . . . . . . . . . . . . 4 5 6 . . Heat Flow Errors 11 | . . . . . . . 2 2 . . . . . . . . . . . . . . 3 2 2 . . Energy Discharges 16 | . . . . . . . 4 4 . . . . . . . . . . . . . . 4 2 . . 2 Parts Rejected 2 | . . . . . . . . 1 . . . . . . . . . . . . . . 1 . . . . Data Loss (minor) 18 | . . . . . . . 6 . . . . . . 1 . . . . . 1 . . 2 5 2 . 1 Data Loss (major) 4 | . . . . . . . 3 . . . . . . . . . . . . . . . . . 1 . . Misfires 2 | . . . . . . . 1 1 . . . . . . . . . . . . . . . . . . . Targeting Errors 32 | . . . . . . . 5 . . . . . . 2 . . . . . . . . 9 5 8 . 3 Weapon Failures 5 | . . . . . . . 2 . . . . . . . . . . . . . . . 2 . . . 1 Overload Shots 37 | . . . . . . . . . . . . . . . . . . . . . . . 37 . . . . Effects 3 | . . . . . . . . . . . . . . . . . . . . . . . 3 . . . . Heat Surge 1 | . . . . . . . . . . . . . . . . . . . . . . . 1 . . . . Meltdown 2 | . . . . . . . . . . . . . . . . . . . . . . . 2 . . . . Overflow Damage 1123 | . . . . . . . . . 10 13 . . . . . . . . . 32 255 33 43 143 591 3 . Projectiles 840 | . . . . . . . . . . 13 . . . . . . . . . 11 11 33 38 143 588 3 . Explosions 280 | . . . . . . . . . 10 . . . . . . . . . . 21 244 . 5 . . . . Melee 3 | . . . . . . . . . . . . . . . . . . . . . . . . . 3 . . Knockbacks 52 | . . . . . . . 4 . 3 2 . 1 . 1 . . . . . 10 1 1 . 8 20 . 1 Impact 1 | . . . . . . . . . . . . . . . . . . . . . . . . . . . 1 Kinetic 50 | . . . . . . . 4 . 3 2 . 1 . 1 . . . . . 10 1 1 . 8 19 . . Secondary 1 | . . . . . . . . . . . . . . . . . . . . . . . . . 1 . . Self-Inflicted Damage 132 | . . . . . . . . . . . 36 . . . . . . . . . 81 1 14 . . . . Shots 8 | . . . . . . . . . . . 4 . . . . . . . . . 2 1 1 . . . . Rammed 3 | . . 1 . . . . . . . . . . . . . . . . . . . . . . . . 2 Targets Rammed 3 | . . 1 . . . . . . . . . . . . . . . . . . . . . . . . 2 Kicked . | . . . . . . . . . . . . . . . . . . . . . . . . . . . . Crushed . | . . . . . . . . . . . . . . . . . . . . . . . . . . . . Highest Temperature 565 | . 18 9 8 4 195 456 218 264 273 296 21 250 . 364 33 406 . . 27 391 423 298 391 565 243 375 448 Average Temperature 103 | . 10 9 3 3 58 102 54 100 74 124 14 95 . 143 20 156 . . 18 141 136 116 96 120 86 101 105 Received Heat Transfer 2307 | . 66 45 . . 153 90 81 24 261 153 9 108 . 90 9 . . . . 138 153 36 666 18 81 . 126 Effects 23 | . . . . . . 1 . 3 . 2 . . . . . 1 . . . 1 2 1 . 3 . . 9 Shutdowns 5 | . . . . . . 1 . . . . . . . . . . . . . . . . . 1 . . 3 Energy Bleed 5 | . . . . . . . . . . . . . . . . 1 . . . . . 1 . 1 . . 2 Interference 10 | . . . . . . . . 3 . 2 . . . . . . . . . 1 2 . . . . . 2 Matter Decay 1 | . . . . . . . . . . . . . . . . . . . . . . . . . . . 1 Short Circuit 1 | . . . . . . . . . . . . . . . . . . . . . . . . . . . 1 Damage (core) 1 | . . . . . . . . . . . . . . . . . . . . . . . . 1 . . . Siege Activations 38 | . . . . . . . . . . . . . . 2 . . . . . 7 1 . 9 . 5 2 12 Total Turns 715 | . . . . . . . . . . . . . . 46 . . . . . 91 80 . 102 . 106 24 266 Longest Duration 80 | . . . . . . . . . . . . . . 39 . . . . . 30 80 . 22 . 44 21 62 Robots Corrupted 10 | . . . . . . . . . 1 . 1 . . . . . . . . . . . . . 7 1 . Combat Hostiles 9 | . . . . . . . . . 1 . 1 . . . . . . . . . . . . . 6 1 . Parts Fried 19 | . . . . . . . . . 4 . 1 . . . . . . . . . . . . . 10 4 . Impact Corruptions . | . . . . . . . . . . . . . . . . . . . . . . . . . . . . Robots Melted 4 | . . . . . . . . . . . . . . . . . . . . . . . 4 . . . . Combat Hostiles 4 | . . . . . . . . . . . . . . . . . . . . . . . 4 . . . . Parts Melted 24 | . . . . . . . . . . . . . . . . . . . . . . 2 20 . 2 . . Heat Transferred 7267 | . . . . . 370 . . . . . . 150 . . . . . . . . 407 300 3480 100 2460 . . Parts Sabotaged . | . . . . . . . . . . . . . . . . . . . . . . . . . . . . Parts Stolen . | . . . . . . . . . . . . . . . . . . . . . . . . . . . . Parts Stripped . | . . . . . . . . . . . . . . . . . . . . . . . . . . . . Power Chain Reactions 3 | . . . . . . . . . . . . 2 . . . . . . . . . 1 . . . . . Missiles Intercepted . | . . . . . . . . . . . . . . . . . . . . . . . . . . . . Alert | -11 -10 -10 -10 -9 -8 -7 -7 -7 -6 -5 -5 -5 -5 -4 -4 -4 -4 -4 -4 -4 -3 -3 -3 -2 -2 -1 -1 ------- Run | Scr Mat Min Exi Min Mat Fac Low Low Fac Fac Upp Upp Zhi Pro Fac Was Fac Upp Upp War Pro Res Tes Res Qua Acc Com Peak Influence 765 | . 50 150 . 82 170 156 . . 220 283 . . . . 144 50 266 . . . . 232 496 427 765 474 721 Initial 458 | . . 19 . . 31 50 . . 12 107 . . . . . 50 . . . . . 112 31 247 72 458 132 Average 219 | . 33 44 . 30 61 111 . . 73 153 . . . . 95 18 88 . . . . 135 208 239 381 373 384 Maximum Alert Level 4 | . . . . . . . . . 1 1 . . . . . . 1 . . . . 1 2 2 3 2 4 Low Security (%) 55 | 100 100 100 . 100 100 100 . . 96 74 . . . . 100 100 87 . . . . 83 56 31 14 12 27 Level 1 24 | . . . . . . . . . 3 25 . . . . . . 12 . . . . 16 27 63 49 36 26 Level 2 13 | . . . . . . . . . . . . . . . . . . . . . . . 16 4 22 51 21 Level 3 5 | . . . . . . . . . . . . . . . . . . . . . . . . . 12 . 22 Level 4 . | . . . . . . . . . . . . . . . . . . . . . . . . . . . 2 Level 5 . | . . . . . . . . . . . . . . . . . . . . . . . . . . . . High Security . | . . . . . . . . . . . . . . . . . . . . . . . . . . . . Max Security . | . . . . . . . . . . . . . . . . . . . . . . . . . . . . Squads Dispatched 33 | . 1 . . . 1 1 . . 2 . . . . . . . 2 . . . . . 7 . 9 3 7 Investigation 2 | . . . . . . 1 . . . . . . . . . . 1 . . . . . . . . . . Extermination 14 | . . . . . . . . . 1 . . . . . . . . . . . . . 2 . 3 2 6 Reinforcement 12 | . 1 . . . 1 . . . 1 . . . . . . . 1 . . . . . 4 . 3 1 . Assault 5 | . . . . . . . . . . . . . . . . . . . . . . . 1 . 3 . 1 Garrison . | . . . . . . . . . . . . . . . . . . . . . . . . . . . . Intercept . | . . . . . . . . . . . . . . . . . . . . . . . . . . . . Construction Impeded 1 | . . . . . . . . . . . . . . . . . . . . . . . . . 1 . . Haulers Reinforced 1 | . . . . . . . . . 1 . . . . . . . . . . . . . . . . . . Stealth | -11 -10 -10 -10 -9 -8 -7 -7 -7 -6 -5 -5 -5 -5 -4 -4 -4 -4 -4 -4 -4 -3 -3 -3 -2 -2 -1 -1 --------- Run | Scr Mat Min Exi Min Mat Fac Low Low Fac Fac Upp Upp Zhi Pro Fac Was Fac Upp Upp War Pro Res Tes Res Qua Acc Com Distress Signals 43 | . . . . . 4 . . . . . . . . . . . . . . . . . 1 6 3 1 28 Communications Jammed 7 | . . . . . . . . . . . . . . . . . . . . . . . 7 . . . . Distress Signals 7 | . . . . . . . . . . . . . . . . . . . . . . . 7 . . . . Times Spotted 428 | . 3 9 . 3 17 5 14 1 19 7 8 9 . 9 5 9 4 9 9 43 19 3 44 8 76 9 86 Peak Tracking Total 16 | . 2 4 . 3 3 4 5 1 5 4 5 5 . 5 4 4 4 3 3 11 7 1 7 4 16 3 10 Tactical Retreats 29 | . . . . . 1 . . . 1 3 3 . . . 1 3 . . . 4 . . 2 1 5 . 5 Traps | -11 -10 -10 -10 -9 -8 -7 -7 -7 -6 -5 -5 -5 -5 -4 -4 -4 -4 -4 -4 -4 -3 -3 -3 -2 -2 -1 -1 ------- Run | Scr Mat Min Exi Min Mat Fac Low Low Fac Fac Upp Upp Zhi Pro Fac Was Fac Upp Upp War Pro Res Tes Res Qua Acc Com Traps Triggered 22 | . 3 . . . . . . . 2 . . . . . 1 . . . . . . . . . . . 16 Indirectly 2 | . . . . . . . . . 2 . . . . . . . . . . . . . . . . . . Trap Hack Attempts . | . . . . . . . . . . . . . . . . . . . . . . . . . . . . Triggered . | . . . . . . . . . . . . . . . . . . . . . . . . . . . . Disarmed . | . . . . . . . . . . . . . . . . . . . . . . . . . . . . Reprogrammed . | . . . . . . . . . . . . . . . . . . . . . . . . . . . . Reused . | . . . . . . . . . . . . . . . . . . . . . . . . . . . . Traps Extracted . | . . . . . . . . . . . . . . . . . . . . . . . . . . . . Installed . | . . . . . . . . . . . . . . . . . . . . . . . . . . . . Triggered 17 | . . . . . . . . 1 . . . 1 . . . . . . . 13 . . . . 2 . . Machines | -11 -10 -10 -10 -9 -8 -7 -7 -7 -6 -5 -5 -5 -5 -4 -4 -4 -4 -4 -4 -4 -3 -3 -3 -2 -2 -1 -1 ---------- Run | Scr Mat Min Exi Min Mat Fac Low Low Fac Fac Upp Upp Zhi Pro Fac Was Fac Upp Upp War Pro Res Tes Res Qua Acc Com Machines Disabled 35 | . . . . 1 1 . . . 1 . . . . . 1 . . . . 1 5 . 9 3 6 2 5 Max in Single Turn 3 | . . . . . 1 . . . 1 . . . . . 1 . . . . . 3 . 1 1 1 1 2 Garrison Access 5 | . . . . . 1 . . . . 1 . . . . . . . . . . . . . 2 1 . . Phase Generator 1 | . . . . . . . . . . . . . . . . . . . . . . . . . . . 1 Machines Sabotaged . | . . . . . . . . . . . . . . . . . . . . . . . . . . . . Garrisons Compromised . | . . . . . . . . . . . . . . . . . . . . . . . . . . . . Overloaded Fab Kills . | . . . . . . . . . . . . . . . . . . . . . . . . . . . . Fab Network Shutdowns . | . . . . . . . . . . . . . . . . . . . . . . . . . . . . Hacking | -11 -10 -10 -10 -9 -8 -7 -7 -7 -6 -5 -5 -5 -5 -4 -4 -4 -4 -4 -4 -4 -3 -3 -3 -2 -2 -1 -1 --------- Run | Scr Mat Min Exi Min Mat Fac Low Low Fac Fac Upp Upp Zhi Pro Fac Was Fac Upp Upp War Pro Res Tes Res Qua Acc Com Machines Accessed 76 | . 1 . 1 . 6 2 1 . 2 2 1 . 9 . 1 . 1 . . 16 . 3 10 . 11 2 7 Terminals 38 | . 1 . . . 5 . 1 . 2 1 . . . . 1 . 1 . . . . 1 8 . 8 2 7 Fabricators 2 | . . . . . . 2 . . . . . . . . . . . . . . . . . . . . . Repair Stations . | . . . . . . . . . . . . . . . . . . . . . . . . . . . . Recycling Units . | . . . . . . . . . . . . . . . . . . . . . . . . . . . . Scanalyzers 4 | . . . . . . . . . . . . . . . . . . . . . . 1 1 . 2 . . Garrison Access 5 | . . . . . 1 . . . . 1 . . . . . . . . . . . 1 1 . 1 . . Total Hacks 188 | . 3 . 2 . 16 6 1 . 5 2 1 . 48 . 2 . 3 . . 33 . 8 18 . 26 4 10 Successful 138 | . 2 . 2 . 6 3 1 . 1 1 1 . 48 . 1 . 3 . . 33 . 4 10 . 16 2 4 Failed 50 | . 1 . . . 10 3 . . 4 1 . . . . 1 . . . . . . 4 8 . 10 2 6 Catastrophic 6 | . . . . . 2 . . . . . . . . . . . . . . . . 1 1 . . . 2 Database Lockouts . | . . . . . . . . . . . . . . . . . . . . . . . . . . . . Manual 47 | . 3 . . . 14 . . . 5 1 . . . . 2 . 1 . . . . 5 7 . 3 1 5 Terminals 83 | . 3 . . . 15 . 1 . 5 1 . . . . 2 . 3 . . . . 5 15 . 19 4 10 Fabricators 6 | . . . . . . 6 . . . . . . . . . . . . . . . . . . . . . Repair Stations . | . . . . . . . . . . . . . . . . . . . . . . . . . . . . Recycling Units . | . . . . . . . . . . . . . . . . . . . . . . . . . . . . Scanalyzers 10 | . . . . . . . . . . . . . . . . . . . . . . 2 2 . 6 . . Garrison Access 5 | . . . . . 1 . . . . 1 . . . . . . . . . . . 1 1 . 1 . . Terminal Hacks 113 | . 1 . 2 . 2 . 1 . . . 1 . 48 . . . 2 . . 33 . 2 7 . 9 2 3 Record 73 | . . . 2 . . . 1 . . . . . 36 . . . . . . 27 . . . . 7 . . Part Schematic 7 | . 1 . . . . . . . . . . . 4 . . . . . . . . 1 1 . . . . Robot Analysis 4 | . . . . . . . . . . . . . 4 . . . . . . . . . . . . . . Prototype ID Bank 8 | . . . . . . . . . . . . . 4 . . . . . . 4 . . . . . . . Open Door 6 | . . . . . . . . . . . 1 . . . . . . . . 2 . . 1 . 1 . 1 Level Access Points 2 | . . . . . . . . . . . . . . . . . . . . . . . 1 . . . 1 Branch Access Points 3 | . . . . . 1 . . . . . . . . . . . . . . . . 1 1 . . . . Terminal Index 2 | . . . . . . . . . . . . . . . . . . . . . . . 1 . . . 1 Alert Level 1 | . . . . . . . . . . . . . . . . . 1 . . . . . . . . . . Unreport Threat 4 | . . . . . 1 . . . . . . . . . . . 1 . . . . . 1 . . 1 . Zone Layout 2 | . . . . . . . . . . . . . . . . . . . . . . . . . 1 1 . Protovariant Controls 1 | . . . . . . . . . . . . . . . . . . . . . . . 1 . . . . Fabricator Hacks 3 | . . . . . . 3 . . . . . . . . . . . . . . . . . . . . . Load Schematic 2 | . . . . . . 2 . . . . . . . . . . . . . . . . . . . . . Build 1 | . . . . . . 1 . . . . . . . . . . . . . . . . . . . . . Repair Station Hacks . | . . . . . . . . . . . . . . . . . . . . . . . . . . . . Recycling Unit Hacks . | . . . . . . . . . . . . . . . . . . . . . . . . . . . . Scanalyzer 6 | . . . . . . . . . . . . . . . . . . . . . . 1 1 . 4 . . Insert Component 6 | . . . . . . . . . . . . . . . . . . . . . . 1 1 . 4 . . Garrison Access Hacks 3 | . . . . . 1 . . . . 1 . . . . . . . . . . . . . . 1 . . Seal Access 3 | . . . . . 1 . . . . 1 . . . . . . . . . . . . . . 1 . . Unauthorized Hacks 13 | . 1 . . . 3 . . . 1 . . . . . 1 . 1 . . . . 1 2 . 2 . 1 Terminals 13 | . 1 . . . 3 . . . 1 . . . . . 1 . 1 . . . . 1 2 . 2 . 1 Track 2 | . . . . . . . . . . . . . . . . . . . . . . . . . 2 . . Botnet 11 | . 1 . . . 3 . . . 1 . . . . . 1 . 1 . . . . 1 2 . . . 1 Fabricators . | . . . . . . . . . . . . . . . . . . . . . . . . . . . . Repair Stations . | . . . . . . . . . . . . . . . . . . . . . . . . . . . . Recycling Units . | . . . . . . . . . . . . . . . . . . . . . . . . . . . . Scanalyzers . | . . . . . . . . . . . . . . . . . . . . . . . . . . . . Garrison Access . | . . . . . . . . . . . . . . . . . . . . . . . . . . . . Data Cores Recovered . | . . . . . . . . . . . . . . . . . . . . . . . . . . . . Used . | . . . . . . . . . . . . . . . . . . . . . . . . . . . . Hacking Detections 42 | . 1 . . . 5 2 1 . 2 1 . . . . 1 . 1 . . . . 3 9 . 8 2 6 Full Trace Events 1 | . . . . . . 1 . . . . . . . . . . . . . . . . . . . . . Feedback Events . | . . . . . . . . . . . . . . . . . . . . . . . . . . . . Feedback Blocked . | . . . . . . . . . . . . . . . . . . . . . . . . . . . . Robot Schematics Acquired . | . . . . . . . . . . . . . . . . . . . . . . . . . . . . Robots Built . | . . . . . . . . . . . . . . . . . . . . . . . . . . . . Matter . | . . . . . . . . . . . . . . . . . . . . . . . . . . . . Time . | . . . . . . . . . . . . . . . . . . . . . . . . . . . . Total Robot Build Rating . | . . . . . . . . . . . . . . . . . . . . . . . . . . . . Part Schematics Acquired 7 | . 1 . . . . . . . . . . . 4 . . . . . . . . 1 1 . . . . Parts Built 1 | . . . . . . 1 . . . . . . . . . . . . . . . . . . . . . Matter 102 | . . . . . . 102 . . . . . . . . . . . . . . . . . . . . . Time 51 | . . . . . . 51 . . . . . . . . . . . . . . . . . . . . . Total Part Build Rating 1 | . . . . . . 1 . . . . . . . . . . . . . . . . . . . . . Parts Repaired . | . . . . . . . . . . . . . . . . . . . . . . . . . . . . Time . | . . . . . . . . . . . . . . . . . . . . . . . . . . . . Parts Recycled . | . . . . . . . . . . . . . . . . . . . . . . . . . . . . Recycled Matter . | . . . . . . . . . . . . . . . . . . . . . . . . . . . . Retrieved Matter . | . . . . . . . . . . . . . . . . . . . . . . . . . . . . Retrieved Components . | . . . . . . . . . . . . . . . . . . . . . . . . . . . . Parts Scanalyzed . | . . . . . . . . . . . . . . . . . . . . . . . . . . . . Part Schematics Acquired . | . . . . . . . . . . . . . . . . . . . . . . . . . . . . Parts Damaged . | . . . . . . . . . . . . . . . . . . . . . . . . . . . . Bothacking | -11 -10 -10 -10 -9 -8 -7 -7 -7 -6 -5 -5 -5 -5 -4 -4 -4 -4 -4 -4 -4 -3 -3 -3 -2 -2 -1 -1 ------------ Run | Scr Mat Min Exi Min Mat Fac Low Low Fac Fac Upp Upp Zhi Pro Fac Was Fac Upp Upp War Pro Res Tes Res Qua Acc Com Used RIF Installer . | . . . . . . . . . . . . . . . . . . . . . . . . . . . . Robots Hacked . | . . . . . . . . . . . . . . . . . . . . . . . . . . . . Non-combat . | . . . . . . . . . . . . . . . . . . . . . . . . . . . . Combat . | . . . . . . . . . . . . . . . . . . . . . . . . . . . . Robot Hacks Applied . | . . . . . . . . . . . . . . . . . . . . . . . . . . . . Relay Couplers Released 7 | . . . . . . . . . . . . . . . . . . . . . . . . 4 3 . . Machine Destruction 4 | . . . . . . . . . . . . . . . . . . . . . . . . 4 . . . Programmers 3 | . . . . . . . . . . . . . . . . . . . . . . . . . 3 . . Robots Rewired 2 | . . . 2 . . . . . . . . . . . . . . . . . . . . . . . . Allies Hacked . | . . . . . . . . . . . . . . . . . . . . . . . . . . . . Hacks Repelled . | . . . . . . . . . . . . . . . . . . . . . . . . . . . . Allies | -11 -10 -10 -10 -9 -8 -7 -7 -7 -6 -5 -5 -5 -5 -4 -4 -4 -4 -4 -4 -4 -3 -3 -3 -2 -2 -1 -1 -------- Run | Scr Mat Min Exi Min Mat Fac Low Low Fac Fac Upp Upp Zhi Pro Fac Was Fac Upp Upp War Pro Res Tes Res Qua Acc Com Total Allies 24 | . . 3 2 . . . . . . . . . . . . 19 . . . . . . . . . . . Largest Group 19 | . . 3 3 3 2 . . . . . . . . . . 19 19 19 17 12 2 . . . . . . Highest-Rated Group 714 | . . 40 45 45 24 . . . . . . . . . . 714 714 714 664 493 56 . . . . . . Highest-Rated Ally 50 | . . 16 21 21 16 . . . . . . . . . . 50 50 50 50 50 30 . . . . . . Total Orders 71 | . . . . . . . . . . . . . . . . . . . . . . 3 . 20 20 11 17 STAY 3 | . . . . . . . . . . . . . . . . . . . . . . . . 1 2 . . FOLLOW 2 | . . . . . . . . . . . . . . . . . . . . . . . . 2 . . . EXPLORE 34 | . . . . . . . . . . . . . . . . . . . . . . 2 . 12 8 4 8 RETURN 32 | . . . . . . . . . . . . . . . . . . . . . . 1 . 5 10 7 9 Ally Attacks 261 | . . 28 . 4 31 . . . . . . . . . . . 17 68 35 78 . . . . . . . Total Damage 6510 | . . 359 . 85 247 . . . . . . . . . . . 370 1670 1686 2093 . . . . . . . Kills 60 | . . 6 . 4 4 . . . . . . . . . . . 5 14 14 13 . . . . . . . Allies Corrupted 3 | . . . . . . . . . . . . . . . . . . . . 1 . . . . . 2 . Allies Melted 1 | . . . . . . . . . . . . . . . . . . . . 1 . . . . . . . Intel | -11 -10 -10 -10 -9 -8 -7 -7 -7 -6 -5 -5 -5 -5 -4 -4 -4 -4 -4 -4 -4 -3 -3 -3 -2 -2 -1 -1 ------- Run | Scr Mat Min Exi Min Mat Fac Low Low Fac Fac Upp Upp Zhi Pro Fac Was Fac Upp Upp War Pro Res Tes Res Qua Acc Com Robot Analysis Total 4 | . . . . . . . . . . . . . 4 . . . . . . . . . . . . . . Derelict Logs Recovered 8 | . . 1 . . . . . 1 . . . 1 . 3 . . . 1 1 . . . . . . . . Drone Launches 41 | . . . . . . . . . . . . . . . . . . . . . . 3 . 12 9 8 9 Drone Recoveries 29 | . . . . . . . . . . . . . . . . . . . . . . 3 . 8 5 6 7 Exploration | -11 -10 -10 -10 -9 -8 -7 -7 -7 -6 -5 -5 -5 -5 -4 -4 -4 -4 -4 -4 -4 -3 -3 -3 -2 -2 -1 -1 ------------- Run | Scr Mat Min Exi Min Mat Fac Low Low Fac Fac Upp Upp Zhi Pro Fac Was Fac Upp Upp War Pro Res Tes Res Qua Acc Com Turns Passed 31439 | 73 224 907 982 104 739 413 1396 278 664 487 1346 1484 1045 1744 234 1077 194 1234 1719 1899 4462 541 1523 1176 1911 1016 2567 Spaces Moved 12760 | 41 114 526 588 60 355 256 633 127 375 310 642 587 503 732 93 466 90 649 848 906 982 214 506 216 692 364 885 Core 7 | 7 . . . . . . . . . . . . . . . . . . . . . . . . . . . Treads 10366 | 34 110 526 588 60 253 . 560 127 8 . 601 587 503 732 93 466 90 649 848 906 395 214 506 121 140 364 885 Legs 651 | . 4 . . . . . . . . . . . . . . . . . . . . . . 95 552 . . Wheels 1736 | . . . . . 102 256 73 . 367 310 41 . . . . . . . . . 587 . . . . . . Hover . | . . . . . . . . . . . . . . . . . . . . . . . . . . . . Flight . | . . . . . . . . . . . . . . . . . . . . . . . . . . . . Fastest Speed 50 | 50 150 160 160 160 110 120 130 200 110 110 110 180 180 185 182 182 183 183 183 183 186 190 187 180 146 181 176 Average Speed 179 | 141 160 160 160 160 160 123 193 200 121 111 168 180 183 191 183 182 183 183 183 183 205 194 202 219 170 189 193 Slowest Speed 260 | 160 180 160 160 160 180 130 200 200 260 120 180 180 185 230 185 183 183 183 183 250 230 210 250 250 250 205 210 Overloaded Moves . | . . . . . . . . . . . . . . . . . . . . . . . . . . . . Propulsion Burnouts . | . . . . . . . . . . . . . . . . . . . . . . . . . . . . Robots Hopped . | . . . . . . . . . . . . . . . . . . . . . . . . . . . . Cave-ins Triggered . | . . . . . . . . . . . . . . . . . . . . . . . . . . . . Teleports 2 | . . . . . . . . . . . . . . . . . . . . . . . . . 1 1 . Exploration Rate (%) 46 | 3 17 81 93 17 32 5 65 21 11 7 62 78 62 87 3 94 3 81 95 94 97 6 70 34 55 13 28 Regions Visited 27 Branch Regions 16 Pre-discovered Areas 6 | . . 1 . . . . . 1 . . . . 3 1 . . . . . . . . . . . . . Known Exits Taken 19 | . . . . . 1 1 1 1 1 1 1 1 1 1 . . 1 1 1 1 1 1 1 1 . 1 . Unknown Exits Taken 6 | 1 1 1 1 1 . . . . . . . . . . . . . . . . . . . . 1 . . Scrap Searched 26 | . . 2 . . . . 1 3 . . 2 2 . 4 . . . 5 4 . 3 . . . . . . Spaces Dug 85 | . . . . . . . . . 5 6 2 . 1 . 1 . 5 . . . 14 1 14 16 15 1 4 Terrain Destroyed 464 | . . . . . 1 1 4 . 6 24 2 21 1 5 2 . 5 . . 47 137 10 57 33 55 1 52 Melee 51 | . . . . . . . . . 5 4 2 . 1 . 1 . . . . . . . 5 13 15 1 4 Projectile 200 | . . . . . 1 1 4 . 1 20 . 12 . 5 1 . 5 . . 7 16 4 15 20 40 . 48 AOE 213 | . . . . . . . . . . . . 9 . . . . . . . 40 121 6 37 . . . . Terrain Rammed . | . . . . . . . . . . . . . . . . . . . . . . . . . . . . Walls Destroyed . | . . . . . . . . . . . . . . . . . . . . . . . . . . . . Machines Disabled . | . . . . . . . . . . . . . . . . . . . . . . . . . . . . Actions | -11 -10 -10 -10 -9 -8 -7 -7 -7 -6 -5 -5 -5 -5 -4 -4 -4 -4 -4 -4 -4 -3 -3 -3 -2 -2 -1 -1 --------- Run | Scr Mat Min Exi Min Mat Fac Low Low Fac Fac Upp Upp Zhi Pro Fac Was Fac Upp Upp War Pro Res Tes Res Qua Acc Com Total 19926 | 53 144 576 616 67 472 320 731 147 518 406 882 979 585 1037 148 632 118 695 1007 1061 3338 315 829 863 1286 671 1430 Wait 4719 | . 8 21 . 3 36 23 41 7 20 40 171 358 4 270 12 58 4 46 151 46 2236 53 92 535 211 131 142 Move 12733 | 40 113 525 587 59 354 255 632 126 374 309 641 586 502 731 93 465 89 648 847 905 981 213 505 215 691 363 884 Hop . | . . . . . . . . . . . . . . . . . . . . . . . . . . . . Pick Up 395 | 6 5 13 6 2 29 13 8 3 15 9 20 1 10 3 15 38 6 . . 14 10 15 32 16 42 28 36 Fast Attach 100 | 6 2 1 . . 3 2 3 2 9 1 4 1 4 1 1 1 . . 2 8 2 2 7 5 9 10 14 Attach 218 | . 6 . . 1 5 5 8 2 6 5 3 1 2 . 7 3 . . . 7 19 6 16 20 34 26 36 Detach 71 | . . . . . . . 1 . 3 2 1 1 . 2 2 . . . . 4 3 . 2 5 19 13 13 Swap 407 | 1 1 1 . . 7 4 3 . 20 11 12 16 7 11 8 21 4 1 2 25 20 10 60 11 56 27 68 Drop 366 | . 2 4 6 1 15 5 1 4 32 7 11 . 14 5 5 21 9 . 2 20 14 5 35 20 29 38 61 Fire 762 | . 7 10 10 1 23 13 34 3 29 18 17 15 39 14 4 25 6 . 3 32 53 11 67 20 148 25 135 Melee 112 | . . . . . . . . . 10 4 2 . 2 . 1 . . . . . . . 13 16 47 10 7 Ram . | . . . . . . . . . . . . . . . . . . . . . . . . . . . . Kick . | . . . . . . . . . . . . . . . . . . . . . . . . . . . . Crush 3 | . . 1 . . . . . . . . . . . . . . . . . . . . . . . . 2 Escape Stasis 32 | . . . . . . . . . . . . . . . . . . . . . . . . . . . 32 Rewire 8 | . . . 7 . . . . . . . . . 1 . . . . . . . . . . . . . . Trap . | . . . . . . . . . . . . . . . . . . . . . . . . . . . . Miscellaneous . | . . . . . . . . . . . . . . . . . . . . . . . . . . . . Route ------- -11/Scrapyard -10/Materials -10/Mines (discovered 3 exits: [*Mat x2] / *Exi) -10/Exiles (discovered 2 exits: [*Min x2]) -9/Mines -8/Materials (discovered 2 exits: *Fac / Sto) -7/Factory -7/Lower Caves -7/Lower Caves -6/Factory -5/Factory -5/Upper Caves -5/Upper Caves (discovered 2 exits: *Fac / *Zhi) -5/Zhirov -4/Proximity Caves -4/Factory -4/Waste -4/Factory -4/Upper Caves -4/Upper Caves (discovered 2 exits: *Res / *War) -4/Warlord -3/Proximity Caves -3/Research (discovered 4 exits: Res / Arm / *Tes x2) -3/Testing -2/Research (discovered 2 exits: *Acc / *Qua) -2/Quarantine -1/Access -1/Command (discovered 2 exits: *Sur x2) 0b11 Command History --------- Turn | Location | Event 38 | -11/Scrapyard | Discovered new exit (range 16) 74 | -11/Scrapyard | Entered Materials 217 | -10/Materials | Discovered new exit (range 9) 298 | -10/Materials | Entered Mines 318 | -10/Mines | Build established: Mutant 428 | -10/Mines | Deemed a non-threat by the Exiles lab entrance 430 | -10/Mines | Discovered new exit (range 5) 492 | -10/Mines | Assisted by bots powering up and referring to "LRC-V3" 541 | -10/Mines | Learned location of Storage (-8) 796 | -10/Mines | Discovered new exit (range 7) 910 | -10/Mines | Discovered new exit (range 6) 1051 | -10/Mines | Learned location of 1 exit from Materials 1058 | -10/Mines | Found a damaged Exp. Sensor Array with a note attached 1062 | -10/Mines | Found Prototype Device 1205 | -10/Mines | Entered Exiles 1205 | -10/Exiles | Found Exiles lab destroyed 1205 | -10/Exiles | Accompanied by 1 ally 1231 | -10/Exiles | Discovered new exit (range 15) 1697 | -10/Exiles | Discovered new exit (range 14) 2187 | -10/Exiles | Entered Mines 2187 | -9/Mines | Accompanied by 3 allies 2240 | -9/Mines | Discovered new exit (range 8) 2265 | -9/Mines | Assembled infested the area 2270 | -9/Mines | Assisted by a Guerilla fighting off Assembled 2291 | -9/Mines | Entered Materials 2291 | -8/Materials | Accompanied by 2 allies 2291 | -8/Materials | Evolved 4 slots: Utility x2, Weapon x2 2292 | -8/Materials | Identified exit to Factory 2737 | -8/Materials | Build established: Hauler-Gunner 2828 | -8/Materials | Identified exit to Storage 3030 | -8/Materials | Entered Factory 3030 | -7/Factory | Evolved 2 slots: Utility x2 3030 | -7/Factory | Identified Exp. Sensor Array 3118 | -7/Factory | Fabricated Hcp. Storage Unit (x1) 3214 | -7/Factory | Lost 3 parts (1p2w) 3276 | -7/Factory | Discovered new exit (range 15) 3345 | -7/Factory | Identified exit to Lower Caves 3443 | -7/Factory | Entered Lower Caves 3478 | -7/Lower Caves | Ambushed by wild Derelicts 3581 | -7/Lower Caves | Lost 4 parts (1p1n2w) 3847 | -7/Lower Caves | Lost 4 parts (1p3w) 4639 | -7/Lower Caves | Build established: Hauler-Mutant 4825 | -7/Lower Caves | Discovered new exit (range 7) 4835 | -7/Lower Caves | Identified exit to Lower Caves 4839 | -7/Lower Caves | Entered another Lower Caves area 4841 | -7/Lower Caves | Attracted the attention of an 0b10 checkpoint 4987 | -7/Lower Caves | Learned location of Zion (-6) 5046 | -7/Lower Caves | Discovered new exit (range 5) 5052 | -7/Lower Caves | Identified exit to Factory 5117 | -7/Lower Caves | Entered Factory 5117 | -6/Factory | Evolved 2 slots: Propulsion x2 5399 | -6/Factory | Found Prototype Processor 5399 | -6/Factory | Identified Exp. Signal Interpreter 5663 | -6/Factory | Discovered new exit (range 15) 5758 | -6/Factory | Found Prototype Processor 5758 | -6/Factory | Identified Exp. Terrain Scan Processor 5780 | -6/Factory | Identified exit to Factory 5781 | -6/Factory | Entered another Factory area 5781 | -5/Factory | Evolved 2 slots: Utility x2 5994 | -5/Factory | Discovered new exit (range 20) 6204 | -5/Factory | Identified exit to Upper Caves 6268 | -5/Factory | Entered Upper Caves 6295 | -5/Upper Caves | Attracted the attention of an 0b10 checkpoint 6674 | -5/Upper Caves | Found Alien Artifact 6702 | -5/Upper Caves | Build established: Scavenger-Mutant 7168 | -5/Upper Caves | Discovered new exit (range 15) 7213 | -5/Upper Caves | Build established: Hauler-Mutant 7519 | -5/Upper Caves | Identified exit to Upper Caves 7614 | -5/Upper Caves | Entered another Upper Caves area 7681 | -5/Upper Caves | Discovered new exit (range 18) 7755 | -5/Upper Caves | Identified exit to Factory 7875 | -5/Upper Caves | Encountered a Warlord checkpoint 8049 | -5/Upper Caves | Learned Factory garrison access intel 8051 | -5/Upper Caves | Build established: Hauler-Skirmisher 8495 | -5/Upper Caves | Attracted the attention of an 0b10 checkpoint 8770 | -5/Upper Caves | Discovered new exit (range 20) 9096 | -5/Upper Caves | Identified exit to Zhirov 9098 | -5/Upper Caves | Entered Zhirov 9098 | -5/Zhirov | Discovered new exit (range 4) 9194 | -5/Zhirov | Build established: Hauler-Mutant 9273 | -5/Zhirov | Learned location of Quarantine (-2) 9273 | -5/Zhirov | Learned location of Testing (-3) 9273 | -5/Zhirov | Learned location of Command (-1) 9342 | -5/Zhirov | Found Alien Artifact 9374 | -5/Zhirov | Found Alien Artifact 9762 | -5/Zhirov | Identified exit to Proximity Caves 10143 | -5/Zhirov | Entered Proximity Caves 10429 | -4/Proximity Caves | Build established: Hauler-Skirmisher 11128 | -4/Proximity Caves | Spotted B-86 Titan 11201 | -4/Proximity Caves | Destroyed B-86 Titan 11747 | -4/Proximity Caves | Discovered exit to Factory (range 18) 11812 | -4/Proximity Caves | Learned 4 Research zone layouts 11887 | -4/Proximity Caves | Entered Factory 11887 | -4/Factory | Evolved 2 slots: Utility x2 11888 | -4/Factory | Loaded intel: 4 garrison access locations 12121 | -4/Factory | Sucked down chute 12121 | -4/Factory | Entered Waste 12168 | -4/Waste | Spotted C-40 Crusher 12171 | -4/Waste | Destroyed C-40 Crusher 12181 | -4/Waste | Spotted C-40 Crusher 12227 | -4/Waste | Spotted C-40 Crusher 12236 | -4/Waste | Spotted C-40 Crusher 12257 | -4/Waste | Destroyed C-40 Crusher 12268 | -4/Waste | Spotted C-40 Crusher 12322 | -4/Waste | Destroyed C-40 Crusher 12338 | -4/Waste | Destroyed C-40 Crusher 12359 | -4/Waste | Destroyed C-40 Crusher 12492 | -4/Waste | Destroyed C-40 Crusher 12565 | -4/Waste | Discovered new exit (range 17) 12644 | -4/Waste | Warlord forces began an assault 12888 | -4/Waste | Identified exit to Factory 13198 | -4/Waste | Entered Factory 13198 | -4/Factory | Accompanied by 19 allies 13358 | -4/Factory | Discovered new exit (range 11) 13379 | -4/Factory | Identified exit to Upper Caves 13392 | -4/Factory | Entered Upper Caves 13392 | -4/Upper Caves | Accompanied by 19 allies 13598 | -4/Upper Caves | Attracted the attention of an 0b10 checkpoint 13832 | -4/Upper Caves | Learned Research emergency access door positions 14172 | -4/Upper Caves | Discovered new exit (range 19) 14201 | -4/Upper Caves | Identified exit to Upper Caves 14626 | -4/Upper Caves | Entered another Upper Caves area 14626 | -4/Upper Caves | Accompanied by 17 allies 14639 | -4/Upper Caves | Discovered new exit (range 16) 14689 | -4/Upper Caves | Identified exit to Research 15056 | -4/Upper Caves | Attracted the attention of an 0b10 checkpoint 15225 | -4/Upper Caves | Encountered a Warlord checkpoint 15860 | -4/Upper Caves | Discovered new exit (range 16) 16039 | -4/Upper Caves | Identified exit to Warlord 16345 | -4/Upper Caves | Entered Warlord 16345 | -4/Warlord | Accompanied by 12 allies 16479 | -4/Warlord | Discovered new exit (range 18) 16510 | -4/Warlord | Identified exit to Proximity Caves 17383 | -4/Warlord | Warlord's base attacked by MAIN.C 17411 | -4/Warlord | Found Prototype Energy Cannon 17411 | -4/Warlord | Identified Vortex Driver 17415 | -4/Warlord | Found Vortex Driver 17698 | -4/Warlord | Learned Armory security intel 17698 | -4/Warlord | Learned Armory terminal intel 17698 | -4/Warlord | Learned Research terminal intel 17699 | -4/Warlord | Learned 4 Armory zone layouts 17699 | -4/Warlord | Learned 4 Research zone layouts 17699 | -4/Warlord | Learned Quarantine stockpile data 17733 | -4/Warlord | Warlord forces counterattacked 17768 | -4/Warlord | Found Prototype Device 17769 | -4/Warlord | Identified Minesniffer Drone Bay 17799 | -4/Warlord | Met Warlord 17929 | -4/Warlord | Found Prototype Ballistic Cannon 17929 | -4/Warlord | Identified Hvy. Autocannon 17941 | -4/Warlord | Found Hvy. Autocannon 17946 | -4/Warlord | Found Hvy. Autocannon 17969 | -4/Warlord | Found Hvy. Autocannon 17984 | -4/Warlord | Spotted Striker 17992 | -4/Warlord | Spotted Executioner 17997 | -4/Warlord | Allies destroyed Executioner 18031 | -4/Warlord | Spotted Executioner 18035 | -4/Warlord | Spotted Striker 18044 | -4/Warlord | Destroyed Striker 18058 | -4/Warlord | Warlord base infiltrated, sounded retreat 18074 | -4/Warlord | Spotted Striker 18081 | -4/Warlord | Destroyed Striker 18123 | -4/Warlord | Spotted Striker 18145 | -4/Warlord | Destroyed Striker 18156 | -4/Warlord | Destroyed Executioner 18178 | -4/Warlord | Found Prototype Launcher 18184 | -4/Warlord | Identified Chain Missile Launcher 18189 | -4/Warlord | Spotted Striker 18189 | -4/Warlord | Spotted Striker 18193 | -4/Warlord | Destroyed Striker 18208 | -4/Warlord | Found Prototype Processor 18244 | -4/Warlord | Entered Proximity Caves 18244 | -3/Proximity Caves | Accompanied by 2 allies 18262 | -3/Proximity Caves | Identified Exp. Core Analyzer 18649 | -3/Proximity Caves | Build established: Hauler-Mutant 18948 | -3/Proximity Caves | Spotted B-86 Titan 18995 | -3/Proximity Caves | Destroyed B-86 Titan 19250 | -3/Proximity Caves | Build established: Hauler-Gunner 21608 | -3/Proximity Caves | Attracted the attention of an 0b10 base 21643 | -3/Proximity Caves | Destroyed 7 combat bots 22210 | -3/Proximity Caves | Attracted the attention of an 0b10 checkpoint 22272 | -3/Proximity Caves | Build established: Hauler-Mutant 22604 | -3/Proximity Caves | Discovered exit to Research (range 9) 22706 | -3/Proximity Caves | Entered Research 22706 | -3/Research | Evolved 2 slots: Power x1, Utility x1 22707 | -3/Research | Identified exit to Research 22709 | -3/Research | Loaded intel: 17 terminal locations 22890 | -3/Research | Identified exit to Armory 22890 | -3/Research | Identified exit to Testing 22973 | -3/Research | Identified Transdimensional Reconstructor 23247 | -3/Research | Entered Testing 23416 | -3/Testing | Found Prototype Hackware 23472 | -3/Testing | Identified Exp. Hacking Suite 23538 | -3/Testing | Identified Core Expander 23538 | -3/Testing | Installed Core Expander, added new Propulsion slot 23806 | -3/Testing | Spotted Striker 23811 | -3/Testing | Protovariant out of control (PL-OYK5Y0TISE) 23811 | -3/Testing | Unleashed a protovariant (PL-OYK5Y0TISE) 23815 | -3/Testing | Spotted Striker 23859 | -3/Testing | Found Prototype Hackware 23889 | -3/Testing | Spotted Alpha 7 23890 | -3/Testing | Destroyed Striker 23894 | -3/Testing | Destroyed Striker 23901 | -3/Testing | Destroyed Alpha 7 23943 | -3/Testing | Stole the SGEMP Prototype 24081 | -3/Testing | Found Prototype Device 24238 | -3/Testing | Found Prototype Hackware 24317 | -3/Testing | Identified System Mapper 24354 | -3/Testing | Scanned by Researcher 24372 | -3/Testing | Found Prototype Protection 24372 | -3/Testing | Identified SHELL Armor 24376 | -3/Testing | Found Hvy. Regenerative Plating 24379 | -3/Testing | Found Prototype Protection 24383 | -3/Testing | Found Prototype Protection 24508 | -3/Testing | Destroyed 7 combat bots 24531 | -3/Testing | Found Prototype Energy Cannon 24651 | -3/Testing | Identified Ghost Barrier 24685 | -3/Testing | Spotted Investigator 24691 | -3/Testing | Destroyed Investigator 24713 | -3/Testing | Found Prototype Launcher 24713 | -3/Testing | Identified Containment Facilitator 24739 | -3/Testing | Identified Lgt. Regenerative Plating 24744 | -3/Testing | Lost 3 parts (1u2w) 24770 | -3/Testing | Entered Research 24770 | -2/Research | Warlord forces began assault on 0b10 24770 | -2/Research | Evolved 2 slots: Utility x2 24771 | -2/Research | Identified exit to Quarantine 24880 | -2/Research | Research machine network offline 24919 | -2/Research | Found Quantum Capacitor 24927 | -2/Research | Found Quantum Capacitor 24932 | -2/Research | Found Quantum Capacitor 24980 | -2/Research | Build established: Hacker-Gunner 24995 | -2/Research | Discovered new exit (range 71) 25057 | -2/Research | Spotted B-90 Cyclops 25148 | -2/Research | Borebot progress halted 25173 | -2/Research | Borebot progress halted 25220 | -2/Research | Borebot progress halted 25359 | -2/Research | Build established: Hacker-Mutant 25407 | -2/Research | Identified Null Cannon 25946 | -2/Research | Entered Quarantine 26062 | -2/Quarantine | Identified Integrated Reactor 26062 | -2/Quarantine | Installed Integrated Reactor, increased core energy generation (+10) 26064 | -2/Quarantine | Identified EM Dispersion Field 26320 | -2/Quarantine | Lost 3 parts (1n1u1w) 26392 | -2/Quarantine | Found Alien Artifact 26418 | -2/Quarantine | Discovered new exit (range 36) 26436 | -2/Quarantine | Identified Subatomic Replicator 26612 | -2/Quarantine | Found Prototype Processor 26612 | -2/Quarantine | Identified Exp. Armor Integrity Analyzer 26725 | -2/Quarantine | Found Alien Impact Weapon 26775 | -2/Quarantine | Found Transdimensional Reconstructor 26783 | -2/Quarantine | Found Alien Artifact 26786 | -2/Quarantine | Found Transdimensional Reconstructor 26788 | -2/Quarantine | Found Alien Artifact 26801 | -2/Quarantine | Found Alien Artifact 26803 | -2/Quarantine | Found Alien Artifact 26805 | -2/Quarantine | Found Alien Artifact 26825 | -2/Quarantine | Found Prototype Device 27111 | -2/Quarantine | Identified Adv. Kinecellerator 27112 | -2/Quarantine | Identified Med. Regenerative Plating 27144 | -2/Quarantine | Met incapacitated Sigix Warrior 27144 | -2/Quarantine | Lockdown squad dispatched 27150 | -2/Quarantine | Acquired the access code to the Sigix quarantine chamber 27213 | -2/Quarantine | Spotted Lightning 27242 | -2/Quarantine | Spotted Lightning 27245 | -2/Quarantine | Spotted Lightning 27275 | -2/Quarantine | Destroyed Lightning 27290 | -2/Quarantine | Destroyed Lightning 27293 | -2/Quarantine | Destroyed Lightning 27325 | -2/Quarantine | Found Prototype Device 27326 | -2/Quarantine | Identified Exp. Phase Shifter 27446 | -2/Quarantine | First assault squad dispatched 27505 | -2/Quarantine | Warped through subspace 27649 | -2/Quarantine | Destroyed 8 combat bots 27729 | -2/Quarantine | Build established: Hauler-Mutant 27857 | -2/Quarantine | Entered Access 27857 | -1/Access | Evolved 2 slots: Propulsion x1, Utility x1 27858 | -1/Access | Identified exit to Command 28157 | -1/Access | Found Fusion Bomb Launcher 28206 | -1/Access | Identified Core Stripper 28213 | -1/Access | Found Enh. Force Lance 28323 | -1/Access | Spotted B-99 Colossus 28501 | -1/Access | Found Prototype Ballistic Gun 28501 | -1/Access | Identified Multirail 28506 | -1/Access | Found Multirail 28529 | -1/Access | Found Multirail 28551 | -1/Access | Spotted B-99 Colossus 28572 | -1/Access | Destroyed B-99 Colossus 28599 | -1/Access | Destroyed B-99 Colossus 28624 | -1/Access | Found Multirail 28644 | -1/Access | Found Multirail 28702 | -1/Access | Identified Hpw. Transdimensional Reconstructor (x2) 28702 | -1/Access | Warped through subspace 28703 | -1/Access | Identified Dimensional Node Initializer (x3) 28703 | -1/Access | Initialized slip node 28798 | -1/Access | Build established: Hauler-Gunner 28873 | -1/Access | Entered Command 29495 | -1/Command | Spotted B-99 Colossus 29501 | -1/Command | Identified exit to Surface 29551 | -1/Command | Spotted Alpha 7 29564 | -1/Command | Spotted Striker 29565 | -1/Command | Destroyed Alpha 7 29571 | -1/Command | Destroyed Striker 29578 | -1/Command | Spotted Striker 29582 | -1/Command | Spotted Alpha 7 29592 | -1/Command | Destroyed Alpha 7 29592 | -1/Command | Destroyed Striker 29612 | -1/Command | Found Prototype Device 29612 | -1/Command | Identified Exp. ECM Suite 29629 | -1/Command | Found Prototype Processor 29629 | -1/Command | Identified Exp. Target Analyzer 29640 | -1/Command | Found Prototype Processor 29640 | -1/Command | Identified Exp. Targeting Computer 29689 | -1/Command | Used Subatomic Replicator to replicate Core Stripper 29750 | -1/Command | Spotted Executioner 29750 | -1/Command | Spotted Executioner 29751 | -1/Command | Destroyed Executioner 29762 | -1/Command | Spotted Executioner 29762 | -1/Command | Spotted Executioner 29763 | -1/Command | Spotted B-99 Colossus 29767 | -1/Command | Destroyed Executioner 29778 | -1/Command | Destroyed B-99 Colossus 29787 | -1/Command | Spotted B-99 Colossus 29794 | -1/Command | Destroyed Executioner 29797 | -1/Command | Destroyed Executioner 29808 | -1/Command | Destroyed B-99 Colossus 29827 | -1/Command | Found Exp. Core Analyzer 29849 | -1/Command | Build established: Scavenger-Gunner 29851 | -1/Command | Found Multirail 29937 | -1/Command | Found Multirail 30217 | -1/Command | Spotted M Guard 30291 | -1/Command | Destroyed B-99 Colossus 30343 | -1/Command | Found Multirail 30529 | -1/Command | Spotted M Guard 30529 | -1/Command | Spotted Combat Programmer 30531 | -1/Command | Spotted Combat Programmer 30564 | -1/Command | Destroyed Combat Programmer 30574 | -1/Command | Destroyed Combat Programmer 30594 | -1/Command | Destroyed M Guard 30614 | -1/Command | Destroyed M Guard 30614 | -1/Command | All MAIN.C guards destroyed 30698 | -1/Command | Found Unknown Protection 30698 | -1/Command | Identified Hvy. Insulated Plating 30781 | -1/Command | Found Exp. Targeting Computer 30802 | -1/Command | Found Adv. Kinecellerator 31089 | -1/Command | Met MAIN.C 31105 | -1/Command | Destroyed MAIN.C Shell 31108 | -1/Command | MAIN.C activated Command garrisons 31150 | -1/Command | 0b10 Conduit disabled 31153 | -1/Command | Destroyed MAIN.C 31165 | -1/Command | Phase Generator disabled 31174 | -1/Command | Found Prototype Reactor 31174 | -1/Command | Identified Zero-point Reactor 31213 | -1/Command | Found Exp. Target Analyzer 31223 | -1/Command | Found Prototype Device 31223 | -1/Command | Identified Beam Splitter 31276 | -1/Command | Spotted B-99 Colossus 31329 | -1/Command | Destroyed B-99 Colossus 31334 | -1/Command | Lost 3 parts (1n2u) 31440 | *** | Establishing 0b11! Last Messages --------------- 31382_ H-88 Terminator suffers critical hit. 31382_ Destroyed KE Penetrator. 31384_ Penetrated by Slug. 31385_ Slug penetrates H-88 Terminator. 31385_ Slug penetrates Reinforced Barrier. 31389_ H-88 Terminator destroyed. 31389_ K-01 Serf collects debris. 31392_ Acquired 97 matter. 31396_ K-01 Serf collects debris. 31404_ Acquired 22 matter. 31410_ Acquired 37 matter. 31418_ Acquired 39 matter. 31420_ S-43 Plague destroyed. 31424_ Acquired 33 matter. 31426_ Acquired 89 matter. 31432_ Acquired 98 matter. [Achievement: 50k Club] [Achievement: Punisher] [Achievement: Commander 0b11] [Achievement: Overachiever] Map ----- +----------------------------------------------------+ | ?????????????????????????????????????????????????? | | ?????????????????????????????????????????????????? | | ?????????????????????????????????????????????????? | | ?????????????????????????????????????????????????? | | ?????????????????????????????????????????????????? | | ?????????????????????????????????????????????????? | | ?????????????????????????????????????????????????? | | ?????????????????????????????????????????????????? | | ?????????????????????????????????????????????????? | | ?????????????????????????????????????????????????? | | ?????????????????????????????????????????????????? | | ?????????????????????????????????????????????????? | | ?????????????????????????????????????????????????? | | ?????????????????????????????????????????????????? | | ?????????????????????????????????????????????????? | | ?????????????????????????????????????????????????? | | ?????????????????????????????????????????????????? | | ?????????????????????????????????????????????????? | | ?????????????????????????????????????????????????? | | ?????????????????????????????????????????????????? | | ????????????????????????????????? ???????????? | | ??????????????????????????????? ??????????? | | ??????????????????????????????? ??????????? | | ???????????????????????######?? ??????????? | | ???????????????????????# #? = !% ???????????? | | ???????????????????????# @ #? % !?????????????? | | ???????????????????????# #? #??????????????? | | ???????????????????????### ## #?????????????#" | | ?????????????????????????#* #" * #?????????????#" | | ??????????????# ####### [!= %=#?????????????#" | | ??????????? =%!*%%[ ! #?????????????#" | | ??????????? = [!*=%/ #?????????????#" | | ??????????????# ####### * = #?????????????# | | ?????????????????####????#! #?????????????# | | ?????????????????# ]??#= ##############??????# | | ?????????????????# #%=;#????# #??????# | | ?????????????????# [ += ##????# #??????# | | ?????????????????# # [#?????# #??????# | | ?????????????????# | " #?????# #??????# | | ?????????????????########" #######= [########! | | ????????????????????????#" * =[ ==%[!!=!!![ | | ????????????????? = %[ %!=! [ !!%!!!=*==* | | ????????????? =%^=%= %%!*= !%*]!!=*==! | | ??????????????## % [= ""######+####+######! | | ???????????????# [ ## ???? ??????????# | | ???????????????# !!! #? ?? ???????????# | | ???????????????# !!= #? "" ???????????## | | ???????????????# !^= #? """?????????????? | | ???????????????# ! #? "R ?????????????? | | ???????????????? #? """?????????????? | +----------------------------------------------------+ Best States ------------- Heat Dissipation 121 Coolant Potential 100 Energy Generation 63 Energy Capacity 1600 Matter Stores 797 Matter Capacity 800 Sight Range 23 Terrain Scan Range 20 Terrain Scan Density 1010 Jamming Range 16 Cloak Strength 4 EM Shielding 4 Armor Coverage 2250 Resistance: KI 25 Resistance: TH 75 Resistance: EM 75 Weapon Cycling 25 Phase Shifting 20 Evasion (%) 60 Targeting Accuracy 24 Target Analysis 12 Core Analysis 15 Armor Integrity Analysis 90 Recoil Reduction 6 Matter Filtering 50 Kinecelleration 50 Overload Regulation 60 Salvage Targeting 4 Offensive Hacking 48 Defensive Hacking 20 Item Schematics ----------------- Hcp. Storage Unit | -10/Materials | Hacked Assault Drone Bay | -5/Zhirov | Free Exp. Heat Sink | -5/Zhirov | Free Exp. Optical Array | -5/Zhirov | Free Imp. Arc Thrower | -5/Zhirov | Free Flak Gun | -3/Research | Hacked Hvy. Regenerative Plating | -3/Testing | Hacked Robot Schematics ------------------ None Fabricated ------------ Hcp. Storage Unit | x1 | -7/Factory Alien Tech Used ----------------- Core Expander Integrated Reactor Transdimensional Reconstructor Core Stripper High-powered Transdimensional Reconstructor Dimensional Node Initializer Subatomic Replicator Achievements -------------- 50k Club A Powerful Ally? Armchair Analyst Charge!!! Commander 0b11 Giant Slayer Overachiever Overkill Punisher Rampage Slippery One Subspace Traveler Sunderer void main() Challenges ------------ None Game ------ Seed CentriumComponentExpander Manual? 0 Play Time 07:33:16 Cumulative 92.8 hours Start 2020.12.29 @ 23:36:40 End 2020.12.30 @ 21:28:45 Sessions 3 Manual Loads 0 Difficulty Rogue Special Mode None Game No. 21 Rogue 21 Adventurer 0 Explorer 0 Win Type 1 Total 6 Types 4/1/0/1/0/0/0/0/0 Lore% 42 Gallery% 62 Achievement% 51 Wizard Run 0 Options --------- ASCII 0 Keyboard 0 Movement Numpad Keybinds 0 Fullscreen 1 Font 18/TerminusBold Map View 76x50 Tactical HUD 1 Map Filters NONE Filters NONE Steam 1 RUN: d9c88a2f-a6bb-4c86-9906-1e3dbae4345e